[Event "Titled Tuesday Blitz November 22 Early 2022"]
[White "Goryachkina, Aleksandra"]
[Black "Jones, Daniel"]
[WhiteFideId "4147103"]
[BlackFideId "2019655"]
[WhiteElo "2484"]
[BlackElo "2336"]
[Result "1-0"]
[Round "01"]
[TimeControl "180+1"]
[Date "2022.11.23"]
[WhiteClock "0:00:06"]
[BlackClock "0:00:08"]

1. e4 {[%clk 0:02:59]}  e5 {[%clk 0:02:59]} 2. Nc3 {[%clk 0:02:58]}  f5 {[%clk 0:02:58]} 3. exf5 {[%clk 0:02:40]}  Nf6 {[%clk 0:02:57]} 4. Nf3 {[%clk 0:02:22]}  Nc6 {[%clk 0:02:55]} 5. d4 {[%clk 0:02:17]}  e4 {[%clk 0:02:54]} 6. Nh4 {[%clk 0:02:12]}  d5 {[%clk 0:02:52]} 7. Bg5 {[%clk 0:01:58]}  Bb4 {[%clk 0:02:44]} 8. a3 {[%clk 0:01:51]}  Ba5 {[%clk 0:02:35]} 9. Bb5 {[%clk 0:01:18]}  Qd6 {[%clk 0:02:26]} 10. O-O {[%clk 0:01:12]}  Bd7 {[%clk 0:02:13]} 11. Bxf6 {[%clk 0:01:04]}  gxf6 {[%clk 0:02:04]} 12. Qh5+ {[%clk 0:00:54]}  Kd8 {[%clk 0:02:04]} 13. Ne2 {[%clk 0:00:48]}  Bd2 {[%clk 0:01:56]} 14. Ng3 {[%clk 0:00:35]}  Bg5 {[%clk 0:01:31]} 15. c4 {[%clk 0:00:25]}  Nxd4 {[%clk 0:01:03]} 16. Bxd7 {[%clk 0:00:22]}  Qxd7 {[%clk 0:01:04]} 17. cxd5 {[%clk 0:00:20]}  Qxd5 {[%clk 0:01:03]} 18. Rad1 {[%clk 0:00:19]}  c5 {[%clk 0:01:03]} 19. b4 {[%clk 0:00:18]}  b6 {[%clk 0:01:03]} 20. bxc5 {[%clk 0:00:16]}  bxc5 {[%clk 0:01:03]} 21. Rfe1 {[%clk 0:00:16]}  Kc7 {[%clk 0:00:41]} 22. Nxe4 {[%clk 0:00:15]}  Rag8 {[%clk 0:00:42]} 23. Ng3 {[%clk 0:00:12]}  Rg7 {[%clk 0:00:35]} 24. Ng6 {[%clk 0:00:10]}  Rd8 {[%clk 0:00:27]} 25. Nh4 {[%clk 0:00:07]}  Rdg8 {[%clk 0:00:21]} 26. Kh1 {[%clk 0:00:06]}  Qa2 {[%clk 0:00:19]} 27. Nf3 {[%clk 0:00:05]}  Qxf2 {[%clk 0:00:15]} 28. Nxd4 {[%clk 0:00:05]}  cxd4 {[%clk 0:00:14]} 29. Qg4 {[%clk 0:00:05]}  Rd8 {[%clk 0:00:11]} 30. Qe4 {[%clk 0:00:05]}  Rgd7 {[%clk 0:00:09]} 31. Rb1 {[%clk 0:00:05]}  Rd5 {[%clk 0:00:07]} 32. Qe7+ {[%clk 0:00:05]}  R8d7 {[%clk 0:00:07]} 33. Qe8 {[%clk 0:00:05]}  Bf4 {[%clk 0:00:07]} 34. Qb8+ {[%clk 0:00:05]}  Kc6 {[%clk 0:00:08]} 35. Qa8+ {[%clk 0:00:05]}  Kd6 {[%clk 0:00:08]} 36. Qb8+ {[%clk 0:00:05]}  Kc6 {[%clk 0:00:08]} 37. Qa8+ {[%clk 0:00:05]}  Kd6 {[%clk 0:00:08]} 38. Re6+ {[%clk 0:00:05]}  Kc5 {[%clk 0:00:08]} 39. Qc6# {[%clk 0:00:06]} 1-0


[Site "https://www.chess.com"]

[Event "Titled Tuesday Blitz November 22 Early 2022"]
[White "Grandelius, Nils"]
[Black "Malka, Samuel"]
[WhiteFideId "1710400"]
[BlackFideId "20643675"]
[WhiteElo "2617"]
[BlackElo "2464"]
[Result "1-0"]
[Round "01"]
[TimeControl "180+1"]
[Date "2022.11.23"]
[WhiteClock "0:01:21"]
[BlackClock "0:00:16"]

1. c4 {[%clk 0:03:00]}  g6 {[%clk 0:02:57]} 2. g3 {[%clk 0:03:00]}  Bg7 {[%clk 0:02:57]} 3. Bg2 {[%clk 0:03:00]}  c5 {[%clk 0:02:58]} 4. Nc3 {[%clk 0:03:01]}  Nc6 {[%clk 0:02:58]} 5. Nf3 {[%clk 0:03:01]}  e5 {[%clk 0:02:58]} 6. d3 {[%clk 0:02:59]}  Nge7 {[%clk 0:02:58]} 7. h4 {[%clk 0:02:59]}  h6 {[%clk 0:02:55]} 8. h5 {[%clk 0:03:00]}  g5 {[%clk 0:02:55]} 9. Nxg5 {[%clk 0:03:01]}  hxg5 {[%clk 0:02:54]} 10. Bxg5 {[%clk 0:03:01]}  f6 {[%clk 0:02:31]} 11. h6 {[%clk 0:03:02]}  fxg5 {[%clk 0:02:26]} 12. hxg7 {[%clk 0:03:02]}  Rxh1+ {[%clk 0:02:26]} 13. Bxh1 {[%clk 0:03:03]}  Kf7 {[%clk 0:02:19]} 14. e3 {[%clk 0:03:03]}  Kxg7 {[%clk 0:02:17]} 15. Qh5 {[%clk 0:03:02]}  Ng6 {[%clk 0:02:14]} 16. Be4 {[%clk 0:02:58]}  Qf6 {[%clk 0:01:43]} 17. Nd5 {[%clk 0:02:50]}  Qf7 {[%clk 0:01:44]} 18. O-O-O {[%clk 0:02:30]}  d6 {[%clk 0:01:08]} 19. Rh1 {[%clk 0:02:23]}  Bf5 {[%clk 0:01:04]} 20. Qh7+ {[%clk 0:02:08]}  Kf8 {[%clk 0:01:03]} 21. Qxf7+ {[%clk 0:02:09]}  Kxf7 {[%clk 0:01:03]} 22. Bxf5 {[%clk 0:02:10]}  Kg7 {[%clk 0:00:51]} 23. Rh5 {[%clk 0:02:06]}  Nce7 {[%clk 0:00:33]} 24. Rxg5 {[%clk 0:01:56]}  Nxf5 {[%clk 0:00:32]} 25. Rxf5 {[%clk 0:01:55]}  Rh8 {[%clk 0:00:29]} 26. Rf6 {[%clk 0:01:35]}  Rh1+ {[%clk 0:00:19]} 27. Kd2 {[%clk 0:01:36]}  Rf1 {[%clk 0:00:20]} 28. f4 {[%clk 0:01:23]}  exf4 {[%clk 0:00:17]} 29. gxf4 {[%clk 0:01:24]}  Rf2+ {[%clk 0:00:18]} 30. Kc3 {[%clk 0:01:24]}  b6 {[%clk 0:00:16]} 31. Rxd6 {[%clk 0:01:23]}  Nh4 {[%clk 0:00:16]} 32. Rd7+ {[%clk 0:01:22]}  Kf8 {[%clk 0:00:16]} 33. Rxa7 {[%clk 0:01:21]} 1-0


[Site "https://www.chess.com"]

[Event "Titled Tuesday Blitz November 22 Early 2022"]
[White "Harsha Bharathakoti"]
[Black "Gheorghiu, Calin"]
[WhiteFideId "5078776"]
[BlackFideId "1200305"]
[WhiteElo "2523"]
[BlackElo "2225"]
[Result "0-1"]
[Round "01"]
[TimeControl "180+1"]
[Date "2022.11.23"]
[WhiteClock "0:00:08"]
[BlackClock "0:00:15"]

1. e4 {[%clk 0:02:58]}  e5 {[%clk 0:02:58]} 2. Nc3 {[%clk 0:02:56]}  Nf6 {[%clk 0:02:56]} 3. Bc4 {[%clk 0:02:56]}  Nxe4 {[%clk 0:02:53]} 4. Qh5 {[%clk 0:02:56]}  Nd6 {[%clk 0:02:39]} 5. Qxe5+ {[%clk 0:02:55]}  Qe7 {[%clk 0:02:38]} 6. Qxe7+ {[%clk 0:02:56]}  Bxe7 {[%clk 0:02:38]} 7. Be2 {[%clk 0:02:57]}  O-O {[%clk 0:02:34]} 8. Nf3 {[%clk 0:02:56]}  Nf5 {[%clk 0:02:32]} 9. d4 {[%clk 0:02:56]}  Nc6 {[%clk 0:02:31]} 10. Nd5 {[%clk 0:02:45]}  Bd6 {[%clk 0:02:21]} 11. c3 {[%clk 0:02:44]}  Re8 {[%clk 0:02:20]} 12. g4 {[%clk 0:02:33]}  Nfe7 {[%clk 0:02:08]} 13. Nf4 {[%clk 0:02:07]}  b6 {[%clk 0:01:57]} 14. Kf1 {[%clk 0:01:52]}  Bb7 {[%clk 0:01:53]} 15. Rg1 {[%clk 0:01:50]}  Nd8 {[%clk 0:01:45]} 16. Bd2 {[%clk 0:01:26]}  Ng6 {[%clk 0:01:28]} 17. Nd3 {[%clk 0:01:20]}  Ne6 {[%clk 0:01:23]} 18. Nfe5 {[%clk 0:01:06]}  Nxe5 {[%clk 0:01:05]} 19. dxe5 {[%clk 0:01:04]}  Bf8 {[%clk 0:01:03]} 20. Rg3 {[%clk 0:00:46]}  Nc5 {[%clk 0:00:56]} 21. Nxc5 {[%clk 0:00:42]}  Bxc5 {[%clk 0:00:48]} 22. f4 {[%clk 0:00:42]}  a5 {[%clk 0:00:39]} 23. Rd1 {[%clk 0:00:32]}  a4 {[%clk 0:00:28]} 24. Be3 {[%clk 0:00:24]}  Bxe3 {[%clk 0:00:26]} 25. Rxe3 {[%clk 0:00:25]}  d6 {[%clk 0:00:27]} 26. Bb5 {[%clk 0:00:16]}  Re7 {[%clk 0:00:23]} 27. exd6 {[%clk 0:00:06]}  Rxe3 {[%clk 0:00:21]} 28. dxc7 {[%clk 0:00:07]}  Ree8 {[%clk 0:00:14]} 29. Bxe8 {[%clk 0:00:06]}  Rxe8 {[%clk 0:00:14]} 30. Rd8 {[%clk 0:00:05]}  Kf8 {[%clk 0:00:14]} 31. Rb8 {[%clk 0:00:01]}  Ba6+ {[%clk 0:00:15]} 32. Kf2 {[%clk 0:00:02]}  Ke7 {[%clk 0:00:15]} 33. b3 {[%clk 0:00:01]}  axb3 {[%clk 0:00:13]} 34. axb3 {[%clk 0:00:02]}  Kd7 {[%clk 0:00:13]} 35. Rxb6 {[%clk 0:00:03]}  Bc8 {[%clk 0:00:14]} 36. Rb5 {[%clk 0:00:03]}  Kxc7 {[%clk 0:00:13]} 37. Rc5+ {[%clk 0:00:03]}  Kd6 {[%clk 0:00:13]} 38. b4 {[%clk 0:00:04]}  Bxg4 {[%clk 0:00:13]} 39. Rg5 {[%clk 0:00:04]}  h5 {[%clk 0:00:13]} 40. Rxg7 {[%clk 0:00:04]}  Re2+ {[%clk 0:00:13]} 41. Kg3 {[%clk 0:00:04]}  Ke7 {[%clk 0:00:14]} 42. Rg5 {[%clk 0:00:05]}  Re3+ {[%clk 0:00:14]} 43. Kg2 {[%clk 0:00:04]}  Rxc3 {[%clk 0:00:14]} 44. Re5+ {[%clk 0:00:05]}  Kd6 {[%clk 0:00:14]} 45. b5 {[%clk 0:00:06]}  Rb3 {[%clk 0:00:13]} 46. Kf2 {[%clk 0:00:05]}  f6 {[%clk 0:00:14]} 47. Re8 {[%clk 0:00:04]}  Rxb5 {[%clk 0:00:13]} 48. Kg3 {[%clk 0:00:05]}  Rb3+ {[%clk 0:00:13]} 49. Kg2 {[%clk 0:00:06]}  h4 {[%clk 0:00:12]} 50. Rh8 {[%clk 0:00:05]}  h3+ {[%clk 0:00:12]} 51. Kf2 {[%clk 0:00:06]}  Rf3+ {[%clk 0:00:12]} 52. Ke2 {[%clk 0:00:07]}  Rxf4+ {[%clk 0:00:13]} 53. Ke3 {[%clk 0:00:08]}  Ra4 {[%clk 0:00:13]} 54. Kf2 {[%clk 0:00:08]}  Ke5 {[%clk 0:00:13]} 55. Kg3 {[%clk 0:00:09]}  f5 {[%clk 0:00:12]} 56. Re8+ {[%clk 0:00:09]}  Kf6 {[%clk 0:00:12]} 57. Rf8+ {[%clk 0:00:09]}  Kg7 {[%clk 0:00:13]} 58. Rd8 {[%clk 0:00:08]}  Ra2 {[%clk 0:00:13]} 59. Rd7+ {[%clk 0:00:07]}  Kf6 {[%clk 0:00:14]} 60. Rd6+ {[%clk 0:00:08]}  Ke5 {[%clk 0:00:13]} 61. Rd8 {[%clk 0:00:06]}  Rg2+ {[%clk 0:00:14]} 62. Kh4 {[%clk 0:00:06]}  Rxh2 {[%clk 0:00:14]} 63. Kg3 {[%clk 0:00:07]}  Rg2+ {[%clk 0:00:14]} 64. Kh4 {[%clk 0:00:08]}  h2 {[%clk 0:00:15]} 0-1


[Site "https://www.chess.com"]

[Event "Titled Tuesday Blitz November 22 Early 2022"]
[White "Horak, Martin"]
[Black "Caruana, Fabiano"]
[WhiteFideId "367095"]
[BlackFideId "2020009"]
[WhiteElo "2091"]
[BlackElo "2847"]
[Result "0-1"]
[Round "01"]
[TimeControl "180+1"]
[Date "2022.11.22"]
[WhiteClock "0:00:07"]
[BlackClock "0:00:53"]

1. e4 {[%clk 0:02:31]}  e6 {[%clk 0:02:33]} 2. d4 {[%clk 0:02:29]}  d5 {[%clk 0:02:33]} 3. Bd3 {[%clk 0:02:30]}  Nc6 {[%clk 0:02:32]} 4. c3 {[%clk 0:02:29]}  e5 {[%clk 0:02:30]} 5. Nf3 {[%clk 0:02:29]}  exd4 {[%clk 0:02:29]} 6. O-O {[%clk 0:02:24]}  Nf6 {[%clk 0:02:26]} 7. e5 {[%clk 0:02:18]}  Ne4 {[%clk 0:02:25]} 8. cxd4 {[%clk 0:02:15]}  Bf5 {[%clk 0:02:14]} 9. Nc3 {[%clk 0:02:09]}  Qd7 {[%clk 0:02:13]} 10. a3 {[%clk 0:02:01]}  Be7 {[%clk 0:02:11]} 11. Qc2 {[%clk 0:01:58]}  O-O-O {[%clk 0:01:59]} 12. Be3 {[%clk 0:01:51]}  Kb8 {[%clk 0:01:57]} 13. Nxe4 {[%clk 0:01:49]}  dxe4 {[%clk 0:01:57]} 14. Bxe4 {[%clk 0:01:50]}  Bxe4 {[%clk 0:01:58]} 15. Qxe4 {[%clk 0:01:50]}  Qd5 {[%clk 0:01:51]} 16. Qc2 {[%clk 0:01:26]}  h6 {[%clk 0:01:49]} 17. b4 {[%clk 0:01:17]}  Rd7 {[%clk 0:01:48]} 18. Rfd1 {[%clk 0:01:17]}  Nd8 {[%clk 0:01:45]} 19. Nd2 {[%clk 0:01:07]}  Ne6 {[%clk 0:01:44]} 20. Ne4 {[%clk 0:01:03]}  Rhd8 {[%clk 0:01:44]} 21. Rac1 {[%clk 0:00:57]}  c6 {[%clk 0:01:43]} 22. Nc3 {[%clk 0:00:35]}  Qc4 {[%clk 0:01:42]} 23. Ne2 {[%clk 0:00:28]}  Qxc2 {[%clk 0:01:40]} 24. Rxc2 {[%clk 0:00:29]}  c5 {[%clk 0:01:32]} 25. bxc5 {[%clk 0:00:20]}  Bxc5 {[%clk 0:01:32]} 26. Rcd2 {[%clk 0:00:20]}  Bxa3 {[%clk 0:01:14]} 27. d5 {[%clk 0:00:20]}  Nc5 {[%clk 0:01:12]} 28. f4 {[%clk 0:00:18]}  b6 {[%clk 0:01:05]} 29. Nc3 {[%clk 0:00:11]}  Bb4 {[%clk 0:00:59]} 30. Rc2 {[%clk 0:00:10]}  Bxc3 {[%clk 0:00:58]} 31. Rxc3 {[%clk 0:00:11]}  Rxd5 {[%clk 0:00:59]} 32. Rxd5 {[%clk 0:00:11]}  Rxd5 {[%clk 0:01:00]} 33. Bxc5 {[%clk 0:00:11]}  Rxc5 {[%clk 0:00:57]} 34. Rd3 {[%clk 0:00:12]}  Kc7 {[%clk 0:00:56]} 35. Kf2 {[%clk 0:00:12]}  a5 {[%clk 0:00:57]} 36. Ke3 {[%clk 0:00:12]}  a4 {[%clk 0:00:57]} 37. Kd4 {[%clk 0:00:07]}  Kc6 {[%clk 0:00:53]} 38. g4 {[%clk 0:00:07]}  Rd5+ {[%clk 0:00:53]} 0-1


[Site "https://www.chess.com"]

[Event "Titled Tuesday Blitz November 22 Early 2022"]
[White "Ibadov, Dashgyn"]
[Black "Le, Tuan Minh"]
[WhiteFideId "24107514"]
[BlackFideId "12401153"]
[WhiteElo "2208"]
[BlackElo "2530"]
[Result "0-1"]
[Round "01"]
[TimeControl "180+1"]
[Date "2022.11.22"]
[WhiteClock "0:00:04"]
[BlackClock "0:00:19"]

1. e4 {[%clk 0:02:56]}  c5 {[%clk 0:02:57]} 2. Nf3 {[%clk 0:02:54]}  Nf6 {[%clk 0:02:57]} 3. Nc3 {[%clk 0:02:53]}  d5 {[%clk 0:02:57]} 4. exd5 {[%clk 0:02:46]}  Nxd5 {[%clk 0:02:58]} 5. Bb5+ {[%clk 0:02:45]}  Bd7 {[%clk 0:02:57]} 6. Bxd7+ {[%clk 0:02:38]}  Qxd7 {[%clk 0:02:57]} 7. O-O {[%clk 0:02:36]}  Nc6 {[%clk 0:02:57]} 8. Nxd5 {[%clk 0:02:30]}  Qxd5 {[%clk 0:02:57]} 9. b3 {[%clk 0:02:31]}  e6 {[%clk 0:02:30]} 10. Bb2 {[%clk 0:02:30]}  Bd6 {[%clk 0:02:30]} 11. d4 {[%clk 0:01:59]}  O-O {[%clk 0:02:11]} 12. c4 {[%clk 0:01:54]}  Qh5 {[%clk 0:02:07]} 13. dxc5 {[%clk 0:01:51]}  Bxc5 {[%clk 0:02:08]} 14. Qc2 {[%clk 0:01:39]}  Rad8 {[%clk 0:02:03]} 15. Rad1 {[%clk 0:01:35]}  a5 {[%clk 0:01:39]} 16. h3 {[%clk 0:01:34]}  Qg6 {[%clk 0:01:31]} 17. Qe2 {[%clk 0:01:13]}  Qf5 {[%clk 0:01:11]} 18. Rxd8 {[%clk 0:00:41]}  Rxd8 {[%clk 0:01:12]} 19. Rd1 {[%clk 0:00:42]}  Rxd1+ {[%clk 0:00:59]} 20. Qxd1 {[%clk 0:00:43]}  h6 {[%clk 0:00:58]} 21. g4 {[%clk 0:00:27]}  Qe4 {[%clk 0:00:56]} 22. Bc3 {[%clk 0:00:18]}  b6 {[%clk 0:00:51]} 23. Kg2 {[%clk 0:00:13]}  Kh7 {[%clk 0:00:27]} 24. Qe1 {[%clk 0:00:13]}  Qc2 {[%clk 0:00:23]} 25. Qd2 {[%clk 0:00:12]}  Qg6 {[%clk 0:00:23]} 26. Qf4 {[%clk 0:00:08]}  f6 {[%clk 0:00:23]} 27. Qc7 {[%clk 0:00:06]}  Nb4 {[%clk 0:00:21]} 28. Bxb4 {[%clk 0:00:05]}  axb4 {[%clk 0:00:21]} 29. Qc6 {[%clk 0:00:04]}  Qc2 {[%clk 0:00:20]} 30. Qxe6 {[%clk 0:00:04]}  Qxf2+ {[%clk 0:00:20]} 31. Kh1 {[%clk 0:00:04]}  Qxf3+ {[%clk 0:00:19]} 0-1


[Site "https://www.chess.com"]

[Event "Titled Tuesday Blitz November 22 Early 2022"]
[White "Ilkhomi, Jaloliddin"]
[Black "Madaminov, Mukhiddin"]
[WhiteFideId "14700948"]
[BlackFideId "14210703"]
[WhiteElo "2045"]
[BlackElo "2341"]
[Result "0-1"]
[Round "01"]
[TimeControl "180+1"]
[Date "2022.11.23"]
[WhiteClock "0:00:03"]
[BlackClock "0:00:50"]

1. d4 {[%clk 0:02:59]}  Nf6 {[%clk 0:03:00]} 2. Nf3 {[%clk 0:02:57]}  e6 {[%clk 0:02:58]} 3. Bf4 {[%clk 0:02:57]}  b6 {[%clk 0:02:57]} 4. Nbd2 {[%clk 0:02:55]}  Bb7 {[%clk 0:02:57]} 5. c3 {[%clk 0:02:56]}  Be7 {[%clk 0:02:47]} 6. h3 {[%clk 0:02:56]}  O-O {[%clk 0:02:43]} 7. e3 {[%clk 0:02:56]}  c5 {[%clk 0:02:43]} 8. Bd3 {[%clk 0:02:56]}  Nc6 {[%clk 0:02:43]} 9. Qe2 {[%clk 0:02:55]}  d6 {[%clk 0:02:42]} 10. O-O {[%clk 0:02:52]}  Rc8 {[%clk 0:02:42]} 11. Rac1 {[%clk 0:02:49]}  h6 {[%clk 0:02:42]} 12. Bh2 {[%clk 0:02:48]}  Nd7 {[%clk 0:02:33]} 13. a3 {[%clk 0:02:34]}  Re8 {[%clk 0:02:22]} 14. Rfd1 {[%clk 0:02:25]}  Bf8 {[%clk 0:02:20]} 15. Bb1 {[%clk 0:02:25]}  d5 {[%clk 0:02:15]} 16. e4 {[%clk 0:01:45]}  cxd4 {[%clk 0:02:14]} 17. cxd4 {[%clk 0:01:42]}  dxe4 {[%clk 0:02:13]} 18. Nxe4 {[%clk 0:01:40]}  Nf6 {[%clk 0:02:12]} 19. Nxf6+ {[%clk 0:01:37]}  Qxf6 {[%clk 0:02:12]} 20. Ne5 {[%clk 0:01:26]}  Nxd4 {[%clk 0:02:09]} 21. Qd3 {[%clk 0:01:27]}  Nf5 {[%clk 0:02:03]} 22. Rxc8 {[%clk 0:01:01]}  Rxc8 {[%clk 0:02:02]} 23. g4 {[%clk 0:01:00]}  Qg5 {[%clk 0:01:42]} 24. h4 {[%clk 0:00:41]}  Qxh4 {[%clk 0:01:36]} 25. gxf5 {[%clk 0:00:42]}  Bc5 {[%clk 0:01:29]} 26. Qg3 {[%clk 0:00:23]}  Qh5 {[%clk 0:01:27]} 27. Re1 {[%clk 0:00:15]}  exf5 {[%clk 0:01:24]} 28. Nd7 {[%clk 0:00:11]}  Bd4 {[%clk 0:01:21]} 29. Ne5 {[%clk 0:00:08]}  Re8 {[%clk 0:01:08]} 30. Nd3 {[%clk 0:00:08]}  Rxe1+ {[%clk 0:01:02]} 31. Nxe1 {[%clk 0:00:09]}  Qd1 {[%clk 0:01:03]} 32. Qb8+ {[%clk 0:00:06]}  Kh7 {[%clk 0:01:03]} 33. Bxf5+ {[%clk 0:00:04]}  g6 {[%clk 0:01:03]} 34. Qe8 {[%clk 0:00:02]}  Bd5 {[%clk 0:00:54]} 35. Bh3 {[%clk 0:00:02]}  Be6 {[%clk 0:00:54]} 36. Bxe6 {[%clk 0:00:02]}  Qxe1+ {[%clk 0:00:54]} 37. Kg2 {[%clk 0:00:02]}  Qxf2+ {[%clk 0:00:50]} 38. Kh3 {[%clk 0:00:02]}  Qf1+ {[%clk 0:00:50]} 39. Kg4 {[%clk 0:00:02]}  h5+ {[%clk 0:00:50]} 40. Kg3 {[%clk 0:00:02]}  Be5+ {[%clk 0:00:50]} 41. Kh4 {[%clk 0:00:02]}  Qf2+ {[%clk 0:00:50]} 42. Kg5 {[%clk 0:00:03]}  Qf6# {[%clk 0:00:50]} 0-1


[Site "https://www.chess.com"]

[Event "Titled Tuesday Blitz November 22 Early 2022"]
[White "Jain, Naveen"]
[Black "Donchenko, Alexander"]
[WhiteFideId "5003970"]
[BlackFideId "24603295"]
[WhiteElo "2036"]
[BlackElo "2572"]
[Result "0-1"]
[Round "01"]
[TimeControl "180+1"]
[Date "2022.11.23"]
[WhiteClock "0:00:06"]
[BlackClock "0:00:46"]

1. c4 {[%clk 0:02:58]}  Nf6 {[%clk 0:02:59]} 2. g3 {[%clk 0:02:56]}  g6 {[%clk 0:02:58]} 3. Bg2 {[%clk 0:02:56]}  Bg7 {[%clk 0:02:59]} 4. Nc3 {[%clk 0:02:57]}  O-O {[%clk 0:02:59]} 5. Nf3 {[%clk 0:02:57]}  d6 {[%clk 0:02:58]} 6. O-O {[%clk 0:02:57]}  e5 {[%clk 0:02:58]} 7. d3 {[%clk 0:02:57]}  a5 {[%clk 0:02:54]} 8. Rb1 {[%clk 0:02:54]}  c6 {[%clk 0:02:52]} 9. a3 {[%clk 0:02:55]}  Re8 {[%clk 0:02:52]} 10. b4 {[%clk 0:02:55]}  axb4 {[%clk 0:02:52]} 11. axb4 {[%clk 0:02:56]}  d5 {[%clk 0:02:52]} 12. cxd5 {[%clk 0:02:52]}  cxd5 {[%clk 0:02:53]} 13. Bg5 {[%clk 0:02:52]}  h6 {[%clk 0:02:43]} 14. Bxf6 {[%clk 0:02:51]}  Bxf6 {[%clk 0:02:43]} 15. e4 {[%clk 0:02:51]}  dxe4 {[%clk 0:02:38]} 16. dxe4 {[%clk 0:02:50]}  Nc6 {[%clk 0:02:36]} 17. Qxd8 {[%clk 0:02:25]}  Bxd8 {[%clk 0:02:31]} 18. Nd5 {[%clk 0:02:26]}  Kg7 {[%clk 0:02:11]} 19. Ra1 {[%clk 0:02:20]}  Rxa1 {[%clk 0:02:01]} 20. Rxa1 {[%clk 0:02:21]}  Bd7 {[%clk 0:01:55]} 21. b5 {[%clk 0:02:06]}  Ne7 {[%clk 0:01:55]} 22. Ra7 {[%clk 0:01:42]}  Bxb5 {[%clk 0:01:45]} 23. Rxb7 {[%clk 0:01:33]}  Bc6 {[%clk 0:01:44]} 24. Ra7 {[%clk 0:01:27]}  Nxd5 {[%clk 0:01:39]} 25. exd5 {[%clk 0:01:27]}  Bxd5 {[%clk 0:01:39]} 26. Rd7 {[%clk 0:01:13]}  Be6 {[%clk 0:01:37]} 27. Ra7 {[%clk 0:01:05]}  Bf6 {[%clk 0:01:32]} 28. h3 {[%clk 0:01:00]}  Rb8 {[%clk 0:01:28]} 29. Nd2 {[%clk 0:00:49]}  Rb2 {[%clk 0:01:19]} 30. Ne4 {[%clk 0:00:47]}  Bd8 {[%clk 0:01:18]} 31. Nc5 {[%clk 0:00:35]}  Bc4 {[%clk 0:01:12]} 32. Rb7 {[%clk 0:00:32]}  Rxb7 {[%clk 0:01:08]} 33. Nxb7 {[%clk 0:00:32]}  Be7 {[%clk 0:01:08]} 34. Na5 {[%clk 0:00:30]}  Bd3 {[%clk 0:01:08]} 35. Nc6 {[%clk 0:00:29]}  Bd6 {[%clk 0:01:08]} 36. Bd5 {[%clk 0:00:25]}  f5 {[%clk 0:01:06]} 37. Kg2 {[%clk 0:00:23]}  Kf6 {[%clk 0:01:06]} 38. f3 {[%clk 0:00:22]}  g5 {[%clk 0:00:59]} 39. Na5 {[%clk 0:00:21]}  Bc5 {[%clk 0:00:55]} 40. Nc4 {[%clk 0:00:20]}  Bd4 {[%clk 0:00:53]} 41. g4 {[%clk 0:00:18]}  e4 {[%clk 0:00:48]} 42. gxf5 {[%clk 0:00:13]}  e3 {[%clk 0:00:48]} 43. Nxe3 {[%clk 0:00:09]}  Bxe3 {[%clk 0:00:48]} 44. Kg3 {[%clk 0:00:07]}  Bxf5 {[%clk 0:00:47]} 45. h4 {[%clk 0:00:07]}  Bf4+ {[%clk 0:00:47]} 46. Kg2 {[%clk 0:00:06]}  gxh4 {[%clk 0:00:48]} 47. Kh1 {[%clk 0:00:05]}  Ke5 {[%clk 0:00:48]} 48. Be4 {[%clk 0:00:05]}  Be6 {[%clk 0:00:46]} 49. Kg2 {[%clk 0:00:05]}  Kd4 {[%clk 0:00:46]} 50. Kh1 {[%clk 0:00:06]}  Ke3 {[%clk 0:00:46]} 51. Kg2 {[%clk 0:00:06]}  h3+ {[%clk 0:00:47]} 52. Kh1 {[%clk 0:00:05]}  Kf2 {[%clk 0:00:46]} 53. Bc6 {[%clk 0:00:06]}  Kg3 {[%clk 0:00:45]} 54. Ba8 {[%clk 0:00:07]}  Bc4 {[%clk 0:00:45]} 55. Bc6 {[%clk 0:00:07]}  Bf1 {[%clk 0:00:45]} 56. Bb5 {[%clk 0:00:06]}  Bg2+ {[%clk 0:00:46]} 0-1


[Site "https://www.chess.com"]

[Event "Titled Tuesday Blitz November 22 Early 2022"]
[White "Jarmula, Lukasz"]
[Black "Leve, Nitai"]
[WhiteFideId "1160664"]
[BlackFideId "2006898"]
[WhiteElo "2357"]
[BlackElo "2144"]
[Result "1-0"]
[Round "01"]
[TimeControl "180+1"]
[Date "2022.11.23"]
[WhiteClock "0:01:50"]
[BlackClock "0:00:02"]

1. e4 {[%clk 0:03:00]}  e6 {[%clk 0:02:59]} 2. d4 {[%clk 0:03:00]}  d5 {[%clk 0:02:54]} 3. Nd2 {[%clk 0:03:00]}  Nf6 {[%clk 0:02:50]} 4. e5 {[%clk 0:03:00]}  Nfd7 {[%clk 0:02:50]} 5. Bd3 {[%clk 0:03:01]}  c5 {[%clk 0:02:49]} 6. c3 {[%clk 0:03:01]}  Nc6 {[%clk 0:02:50]} 7. Ngf3 {[%clk 0:03:02]}  cxd4 {[%clk 0:02:50]} 8. cxd4 {[%clk 0:03:01]}  g6 {[%clk 0:02:49]} 9. O-O {[%clk 0:03:00]}  Bg7 {[%clk 0:02:49]} 10. Nb3 {[%clk 0:02:58]}  O-O {[%clk 0:02:49]} 11. Bg5 {[%clk 0:02:55]}  f6 {[%clk 0:02:38]} 12. exf6 {[%clk 0:02:55]}  Nxf6 {[%clk 0:02:39]} 13. Qd2 {[%clk 0:02:46]}  Qc7 {[%clk 0:02:38]} 14. Rfe1 {[%clk 0:02:43]}  e5 {[%clk 0:02:08]} 15. dxe5 {[%clk 0:02:14]}  Ng4 {[%clk 0:01:59]} 16. Bf4 {[%clk 0:02:13]}  Ncxe5 {[%clk 0:01:31]} 17. Nxe5 {[%clk 0:02:12]}  Rxf4 {[%clk 0:01:10]} 18. Rac1 {[%clk 0:02:05]}  Qd6 {[%clk 0:00:46]} 19. Qxf4 {[%clk 0:02:02]}  Bxe5 {[%clk 0:00:38]} 20. Rxc8+ {[%clk 0:02:01]}  Rxc8 {[%clk 0:00:32]} 21. Qxg4 {[%clk 0:02:01]}  Bxh2+ {[%clk 0:00:26]} 22. Kf1 {[%clk 0:02:01]}  Rf8 {[%clk 0:00:27]} 23. Qe6+ {[%clk 0:01:59]}  Qxe6 {[%clk 0:00:15]} 24. Rxe6 {[%clk 0:02:00]}  Bg3 {[%clk 0:00:14]} 25. Re2 {[%clk 0:02:00]}  Bd6 {[%clk 0:00:12]} 26. Nd4 {[%clk 0:01:54]}  Rc8 {[%clk 0:00:02]} 27. Rc2 {[%clk 0:01:54]}  Re8 {[%clk 0:00:02]} 28. Nb5 {[%clk 0:01:50]} 1-0


[Site "https://www.chess.com"]